bitfinex/quotes_ETHUSD_20250504
["timestamp","ask_amount","ask_price","bid_price","bid_amount"]
[1746329996903,5.43951261,1838.4,1838.3,0.21088207]
[1746329998982,5.439409,1838.5,1838.3,0.21088207]
[1746330000401,5.43951261,1838.4,1838.3,0.21088207]
[1746330000797,6.21861261,1838.4,1838.3,0.21088207]
[1746330000997,5.4400796,1838.3,1838.0,0.7551]
[1746330001381,5.4400796,1838.3,1838.1,0.19419928]
[1746330001699,5.44010445,1838.2,1838.1,0.19419928]
[1746330002402,5.4400796,1838.3,1838.1,0.19419928]
[1746330002403,5.44005293,1838.3,1838.1,0.19419928]
[1746330002603,5.44010445,1838.2,1838.1,0.19419928]
[1746330002999,5.44010445,1838.2,1837.9,4.2112051]
[1746330003201,5.44010445,1838.2,1838.1,0.19419928]
[1746330003399,5.44010445,1838.2,1838.0,0.19462134]
[1746330003601,5.44010445,1838.2,1838.1,0.19419928]
[1746330004086,10.88118332,1838.1,1837.8,3.67681539]
[1746330004296,5.44090795,1838.0,1837.8,3.67681539]
[1746330004612,5.44099243,1837.9,1837.8,3.67681539]
[1746330004794,5.44083165,1838.0,1837.8,3.67681539]
[1746330007097,5.44026367,1838.2,1837.8,3.67681539]
[1746330007300,5.44026367,1838.2,1837.9,0.19504345]
[1746330007626,5.44026367,1838.2,1838.0,0.19602478]
[1746330007933,5.44026367,1838.2,1837.8,9.11798613]
[1746330008131,5.44026367,1838.2,1838.1,0.19560272]
[1746330008336,5.44026367,1838.2,1837.8,3.67681539]
[1746330008496,5.44026367,1838.2,1838.1,0.19556578]
[1746330008696,5.44026367,1838.2,1837.8,3.67681539]
[1746330008933,5.44026367,1838.2,1838.1,0.19556578]
[1746330009231,5.44043883,1838.1,1837.8,3.67681539]
[1746330009600,5.44043883,1838.1,1837.7,6.24070218]
[1746330010413,5.44043883,1838.1,1837.7,0.7993]
[1746330010609,5.44043883,1838.1,1837.7,6.24088]
[1746330010805,5.44043883,1838.1,1837.7,7.6851724]
[1746330011445,10.88109428,1838.1,1837.7,7.6851724]
[1746330011734,5.44043883,1838.1,1837.7,7.6851724]
[1746330012132,5.44028996,1838.2,1837.8,5.44128174]
[1746330013198,5.44028996,1838.2,1837.7,7.68498335]
[1746330013398,5.44031008,1838.2,1837.7,7.68493364]
[1746330013612,5.44031008,1838.2,1837.7,13.12630106]
[1746330013826,6.23347003,1838.3,1837.7,0.7993]
[1746330013827,10.88105948,1838.1,1837.7,0.7993]
[1746330014124,5.44040265,1838.1,1837.7,0.7993]
[1746330014330,5.44040265,1838.1,1837.7,6.2408311]
[1746330015034,10.88105146,1838.1,1837.7,6.2408311]
[1746330015371,5.44103907,1837.9,1837.6,0.41655536]
[1746330015513,5.44128964,1837.8,1837.5,3.8022]
[1746330015837,6.24568964,1837.8,1837.5,3.0]
[1746330016039,0.8044,1837.8,1837.3,8.53415575]
[1746330016217,5.44113457,1837.9,1837.4,5.44245909]
[1746330016422,5.44113457,1837.9,1837.5,6.24427041]
[1746330020835,5.44113457,1837.9,1837.5,0.8022]
[1746330021023,5.44132743,1837.8,1837.5,0.8022]
[1746330022140,5.44132743,1837.8,1837.6,0.19889534]
[1746330024036,5.44121122,1837.9,1837.6,0.19889534]
[1746330025240,10.88246234,1837.9,1837.6,0.19889534]
[1746330025740,5.44121122,1837.9,1837.6,0.19889534]
[1746330026245,5.44130974,1837.8,1837.6,0.19889534]
[1746330027441,10.88247443,1837.9,1837.6,0.19889534]
[1746330027737,5.44121122,1837.9,1837.6,0.19889534]
[1746330031445,5.3284,1838.0,1837.6,0.19889534]
[1746330031659,10.88302201,1837.8,1837.6,0.19889534]
[1746330031840,6.22015896,1837.8,1837.6,0.31285013]
[1746330032050,6.22015896,1837.8,1837.4,5.84555318]
[1746330032347,11.66170824,1837.8,1837.5,0.31370702]
[1746330032849,6.22017069,1837.8,1837.5,0.31370702]
[1746330033058,5.44147069,1837.8,1837.5,0.88930713]
[1746330037818,5.44118046,1837.9,1837.5,6.33147341]
[1746330039465,10.76753732,1838.0,1837.7,0.804]
[1746330039466,9.96483732,1838.0,1837.7,0.804]
[1746330039764,9.96483732,1838.0,1837.8,0.31234784]
[1746330040063,5.44099243,1837.9,1837.8,0.31234784]
[1746330040233,9.96483732,1838.0,1837.8,0.31234784]
[1746330042271,5.44099243,1837.9,1837.8,0.31234784]
[1746330046367,5.44099243,1837.9,1837.5,9.11106419]
[1746330046567,5.44099243,1837.9,1837.8,0.31234784]
[1746330046733,5.44099243,1837.9,1837.5,9.11106419]
[1746330046938,5.44099243,1837.9,1837.8,0.31234784]
[1746330047166,5.44099243,1837.9,1837.5,9.11106419]
[1746330047341,5.44099243,1837.9,1837.8,0.31234784]
[1746330047541,5.44099243,1837.9,1837.5,9.11106419]
[1746330047741,5.44099243,1837.9,1837.8,0.31234784]
[1746330047941,5.44099243,1837.9,1837.5,9.11106419]
[1746330048171,5.44099243,1837.9,1837.8,0.31234784]
[1746330048373,5.44099243,1837.9,1837.5,6.24604426]
[1746330048549,5.44099243,1837.9,1837.8,0.31234784]
[1746330048748,5.44099243,1837.9,1837.5,6.24604426]
[1746330048967,5.44099243,1837.9,1837.8,0.31234784]
[1746330049183,5.44099243,1837.9,1837.5,6.24604426]
[1746330049341,5.44099243,1837.9,1837.8,0.31234784]
[1746330049542,5.44099243,1837.9,1837.5,6.24604426]
[1746330049744,10.76892925,1838.0,1837.8,0.31234784]
[1746330050071,5.44100924,1837.9,1837.5,7.46930899]
[1746330051075,5.44100924,1837.9,1837.5,7.41489398]
[1746330052175,5.44100924,1837.9,1837.6,0.31309381]
[1746330052879,10.76888895,1838.0,1837.6,0.31309381]
[1746330053082,10.76888895,1838.0,1837.6,5.75495616]
[1746330053256,10.76888895,1838.0,1837.6,7.077375]
[1746330053686,5.4405352,1838.1,1837.7,5.44155847]
[1746330053867,9.9645352,1838.1,1837.8,1.13813701]
[1746330054176,6.19806837,1838.2,1837.8,1.13813701]
[1746330054476,9.96426837,1838.2,1837.8,12.07465602]
[1746330054679,9.96426837,1838.2,1837.8,13.45665566]
[1746330054975,9.96426837,1838.2,1837.8,8.01559857]
[1746330055361,5.44074419,1838.0,1837.8,0.31223701]
[1746330055555,5.44161937,1837.7,1837.5,3.0]
[1746330055877,5.44149111,1837.8,1837.5,3.0]
[1746330056478,6.19853955,1838.0,1837.4,0.8259]
[1746330056777,5.4417115,1837.7,1837.4,3.0]
[1746330056979,5.44191174,1837.6,1837.3,1.23584575]
[1746330057282,10.72324482,1837.8,1837.3,2.27140636]
[1746330057487,5.44176071,1837.7,1837.5,3.67681539]
[1746330058688,10.88360655,1837.7,1837.5,3.67681539]
[1746330058890,5.2818,1837.8,1837.5,3.67681539]
[1746330059062,5.44180079,1837.7,1837.5,3.67681539]
[1746330059384,5.44188071,1837.6,1837.5,3.67681539]
[1746330059583,5.44175781,1837.7,1837.5,3.67681539]
[1746330060385,5.44188071,1837.6,1837.5,3.67681539]
[1746330061572,6.20358071,1837.6,1837.5,3.67681539]
[1746330062085,5.44232876,1837.5,1837.1,15.24089596]
[1746330062453,10.88478119,1837.5,1837.1,9.69753521]
[1746330062654,5.44232876,1837.5,1837.1,10.10794696]
[1746330063062,5.44247526,1837.4,1837.1,7.81852714]
[1746330063267,5.44247526,1837.4,1837.1,7.40811539]
[1746330063689,5.44306553,1837.2,1837.1,3.67681539]
[1746330066195,6.21058807,1837.3,1837.1,3.67681539]
[1746330066396,5.44306553,1837.2,1837.1,3.67681539]
[1746330066595,5.44306553,1837.2,1837.0,3.67681539]
[1746330067193,6.21058315,1837.3,1837.1,0.31767586]
[1746330067498,6.21058315,1837.3,1837.1,0.30755592]
[1746330068296,5.44306553,1837.2,1837.1,0.30755592]
[1746330070994,6.21066553,1837.2,1837.1,0.30755592]
[1746330071885,9.76066553,1837.2,1837.1,0.30755592]
[1746330072591,5.44421573,1836.9,1836.6,4.44381539]
[1746330072797,5.44427957,1836.8,1836.6,4.44381539]
[1746330073594,9.96679876,1837.0,1836.6,4.44381539]
[1746330073595,5.44408682,1836.9,1836.6,4.44381539]
[1746330074207,5.44454728,1836.7,1836.6,3.67681539]
[1746330074875,5.44454728,1836.7,1836.6,3.98838616]
[1746330075079,5.44446965,1836.8,1836.6,3.98838616]
[1746330075303,5.44454728,1836.7,1836.6,3.98838616]
[1746330075508,5.44454728,1836.7,1836.6,3.73838616]
[1746330077216,5.44442089,1836.8,1836.6,3.73838616]
[1746330077892,12.0598671,1836.7,1836.6,3.73838616]
[1746330078087,12.0598671,1836.7,1836.6,3.42681539]
[1746330078287,12.0598671,1836.7,1836.6,3.71545167]
[1746330078517,12.0598671,1836.7,1836.0,0.7743]
[1746330078518,5.44568033,1836.4,1836.0,0.7743]
[1746330078728,10.89136066,1836.4,1836.1,0.29078143]
[1746330079016,5.44577082,1836.3,1836.1,0.29078143]
[1746330080403,5.44602984,1836.2,1836.1,0.29078143]
[1746330080585,5.44556853,1836.4,1836.1,0.29078143]
[1746330080913,5.44561682,1836.4,1836.1,0.29078143]
[1746330081495,10.89134893,1836.4,1836.1,0.29078143]
[1746330081910,5.44600154,1836.3,1836.1,0.29078143]
[1746330082419,5.44557013,1836.4,1836.1,0.29078143]
[1746330085496,5.44586111,1836.3,1836.1,0.29078143]
[1746330086010,9.96930328,1836.5,1836.1,0.29078143]
[1746330086216,5.44562282,1836.4,1836.1,0.29078143]
[1746330092822,5.44524321,1836.5,1836.1,5.73691368]
[1746330093003,4.525,1836.5,1836.2,6.24190096]
[1746330093326,4.525,1836.5,1836.2,6.53372777]
[1746330095226,5.44467332,1836.7,1836.4,0.7959]
[1746330095606,5.4444217,1836.8,1836.5,0.29053972]
[1746330095828,9.9694217,1836.8,1836.5,0.29053972]
[1746330096898,5.44465867,1836.7,1836.5,0.29053972]
[1746330097428,9.9694217,1836.8,1836.5,0.29053972]
[1746330097794,5.44457368,1836.7,1836.5,0.29053972]
[1746330097995,9.9694217,1836.8,1836.5,0.29053972]
[1746330099830,5.44463356,1836.7,1836.5,0.29053972]
[1746330100022,5.44484373,1836.6,1836.5,0.29053972]
[1746330102031,5.44469315,1836.7,1836.5,0.29053972]
[1746330102233,4.525,1836.8,1836.5,0.29053972]
[1746330102618,5.44478666,1836.7,1836.5,0.29053972]
[1746330103335,10.88962911,1836.7,1836.5,0.29053972]
[1746330103537,5.44484373,1836.6,1836.5,0.29053972]
[1746330103706,5.4452864,1836.5,1836.1,8.52360012]
[1746330103901,5.4452864,1836.5,1836.2,0.29249025]
[1746330104119,5.4452864,1836.5,1836.1,8.52360012]
[1746330104441,5.4452864,1836.5,1836.2,0.29249025]
[1746330104609,5.4452864,1836.5,1836.1,8.52360012]
[1746330104806,5.4452864,1836.5,1836.3,0.29206117]
[1746330105111,5.4452864,1836.5,1836.1,9.92060826]
[1746330105437,5.44500811,1836.6,1836.1,9.92054509]
[1746330105637,5.44500811,1836.6,1836.2,0.29249025]
[1746330105825,5.44500811,1836.6,1836.1,15.36664457]
[1746330106134,5.44500811,1836.6,1836.2,5.73851853]
[1746330107339,5.44517042,1836.5,1836.2,0.29249025]
[1746330107634,5.44517042,1836.5,1836.1,15.36664127]
[1746330107838,5.44517042,1836.5,1836.3,0.29206117]
[1746330108137,5.44517042,1836.5,1836.4,0.29115289]
[1746330108326,5.44517042,1836.5,1836.1,9.92052744]
[1746330108521,5.44517042,1836.5,1836.2,0.292011]
[1746330108739,5.44502214,1836.6,1836.2,5.44593137]
[1746330108939,5.44502214,1836.6,1836.3,0.29158192]
[1746330111706,5.44502214,1836.6,1836.4,0.7979]
[1746330111911,5.44502214,1836.6,1836.5,0.29072391]
[1746330123060,6.24008471,1836.7,1836.3,6.26289283]
[1746330123262,6.24008471,1836.7,1836.5,0.29053958]
[1746330123431,10.88939242,1836.7,1836.4,0.29096856]
[1746330123639,10.88939215,1836.7,1836.3,6.26289283]
[1746330123945,5.44458471,1836.7,1836.4,0.29096856]
[1746330125554,5.44489231,1836.6,1836.4,0.29096856]
[1746330126829,9.96939673,1836.8,1836.4,0.29096856]
[1746330127027,5.44476176,1836.7,1836.4,0.29096856]
[1746330129389,9.22863299,1836.9,1836.4,0.29096856]
[1746330129557,4.524,1836.8,1836.5,6.21081729]
[1746330129758,4.524,1836.8,1836.6,0.29011064]
[1746330130375,5.44413299,1836.9,1836.6,0.29011064]
[1746330130984,10.88835375,1836.9,1836.6,0.29011064]
[1746330131191,10.88832644,1836.9,1836.6,0.29011064]
[1746330131362,5.44427509,1836.8,1836.6,0.29011064]
[1746330132272,5.44427509,1836.8,1836.3,7.7350133]
[1746330132479,5.44427509,1836.8,1836.7,0.26550586]
[1746330132676,5.44427509,1836.8,1836.4,5.44523422]
[1746330132977,5.44427509,1836.8,1836.4,10.89045982]
[1746330133165,5.44430834,1836.8,1836.5,0.26558969]
[1746330133675,5.44414657,1836.9,1836.5,5.71072853]
[1746330135180,5.44414657,1836.9,1836.6,0.8014]
[1746330135468,5.44414657,1836.9,1836.6,1.06656075]
[1746330137949,5.44425127,1836.8,1836.6,1.06656075]
[1746330138774,5.44425127,1836.8,1836.6,0.26516075]
[1746330139081,5.44454728,1836.7,1836.6,0.26516075]
[1746330139455,5.44454728,1836.7,1836.4,0.8014]
[1746330139772,5.44454728,1836.7,1836.5,0.26558969]
[1746330140163,5.44454728,1836.7,1836.3,5.44566687]
[1746330140368,5.44454728,1836.7,1836.4,0.26601867]
[1746330142894,5.44498225,1836.6,1836.4,0.26601867]
[1746330143115,5.44514021,1836.5,1836.4,0.26601867]
[1746330143444,5.44514021,1836.5,1836.1,0.821]
[1746330143694,5.44514021,1836.5,1836.4,0.26657151]
[1746330144185,5.44514021,1836.5,1836.1,0.821]
[1746330144354,5.44514021,1836.5,1836.2,0.26742961]
[1746330144687,5.44514021,1836.5,1836.1,6.2673202]
[1746330144890,5.44514021,1836.5,1836.3,0.26700054]
[1746330145064,5.44543672,1836.4,1836.2,0.26742961]
[1746330145262,5.44543672,1836.4,1836.1,0.821]
[1746330145471,5.44543672,1836.4,1836.2,0.26742961]
[1746330145648,5.44543672,1836.4,1836.1,0.821]
[1746330145849,5.44543672,1836.4,1836.2,0.26742961]
[1746330146050,5.44543672,1836.4,1836.1,0.821]
[1746330146354,5.44543672,1836.4,1836.2,0.26742961]
[1746330146657,0.8216,1836.4,1835.9,0.821]
[1746330146859,5.44584695,1836.3,1836.0,0.2682879]
[1746330148889,6.26718217,1836.4,1836.0,5.71488132]
[1746330149989,5.44459805,1836.7,1836.2,7.73531154]
[1746330149990,6.22054453,1836.7,1836.2,7.73531154]
[1746330150290,9.96995236,1836.6,1836.3,0.26777474]
[1746330151893,9.96995236,1836.6,1836.3,1.04287474]
[1746330152997,4.525,1836.6,1836.3,6.48859154]
[1746330153162,4.525,1836.6,1836.3,7.91097206]
[1746330153490,4.525,1836.6,1836.3,6.48859154]
[1746330154161,4.525,1836.6,1836.3,1.04287474]
[1746330154563,4.525,1836.6,1836.3,6.48859918]
[1746330155007,14.47878654,1836.9,1836.3,6.48839972]
[1746330155316,5.44458876,1836.7,1836.3,6.48839972]
[1746330155468,5.44458876,1836.7,1836.3,7.91621716]
[1746330156308,9.96839381,1836.8,1836.4,5.44538739]
[1746330156710,15.41291502,1836.8,1836.5,0.26673237]
[1746330156864,9.96839381,1836.8,1836.5,0.26673237]
[1746330157507,5.44439381,1836.8,1836.5,0.26673237]
[1746330157702,9.96839381,1836.8,1836.6,0.7501]
[1746330158061,9.96839381,1836.8,1836.7,0.26587455]
[1746330159097,4.524,1836.8,1836.7,0.26587455]
[1746330159779,9.96680323,1837.0,1836.7,0.26587455]
[1746330159976,15.41073668,1837.0,1836.7,0.26587455]
[1746330160182,5.44395653,1836.9,1836.7,0.26587455]
[1746330160481,5.44379862,1837.0,1836.7,0.26587455]
[1746330161477,10.88771377,1837.0,1836.7,0.26587455]
[1746330161670,5.4440569,1836.9,1836.7,0.26587455]
[1746330163921,5.4440569,1836.9,1836.4,7.73470148]
[1746330164096,5.4440569,1836.9,1836.8,0.24328949]
[1746330164300,5.44431027,1836.8,1836.5,0.77347015]
[1746330164508,5.4440569,1836.9,1836.5,6.21856075]
[1746330164897,5.44427463,1836.8,1836.5,0.77347015]
[1746330165719,5.4441328,1836.9,1836.5,6.21859291]
[1746330165914,5.44428782,1836.8,1836.5,0.77347015]
[1746330166290,5.4441328,1836.9,1836.5,6.21860622]
[1746330166730,5.4441328,1836.9,1836.5,11.66353406]
[1746330166932,5.4441328,1836.9,1836.7,0.7501]
[1746330167113,5.44388161,1837.0,1836.7,0.7501]
[1746330167491,10.88711198,1837.1,1836.7,6.19456378]
[1746330167829,9.96648194,1837.1,1836.7,6.19456378]
[1746330170040,4.05962275,1837.5,1837.0,7.73282947]
[1746330170041,16.6228846,1837.5,1837.0,7.73282947]
[1746330170339,13.6228846,1837.5,1837.1,0.8017]
[1746330170520,5.44283362,1837.3,1837.1,0.8017]
[1746330170691,5.4429844,1837.3,1836.9,0.8017]
[1746330170889,5.44311002,1837.2,1836.9,0.8017]
[1746330171087,5.44295371,1837.3,1836.9,0.8017]
[1746330171530,5.44295371,1837.3,1837.0,0.23870988]
[1746330173719,6.25684971,1837.4,1837.0,0.23870988]
[1746330174427,5.44264971,1837.4,1837.0,0.23870988]
[1746330175523,5.44277662,1837.3,1837.0,0.23870988]
[1746330175729,5.44262609,1837.4,1837.0,5.68232195]
[1746330176845,5.44262609,1837.4,1837.1,0.7705]
[1746330177330,10.72462533,1837.5,1837.1,0.7705]
[1746330177331,9.96441564,1837.5,1837.2,0.23785252]
[1746330178215,5.44241564,1837.5,1837.2,0.23785252]
[1746330178420,5.44241564,1837.5,1837.3,0.7681]
[1746330178600,5.44241564,1837.5,1837.3,1.00552391]
[1746330179096,9.9639603,1837.6,1837.3,1.00552391]
[1746330179097,5.4420541,1837.6,1837.3,1.00552391]
[1746330179301,9.96369967,1837.7,1837.3,6.44817872]
[1746330179526,4.522,1837.7,1837.3,7.98516053]
[1746330179727,4.522,1837.7,1837.3,7.98513162]
[1746330179932,4.522,1837.7,1837.4,5.44244754]
[1746330180236,4.522,1837.7,1837.5,0.23406167]
[1746330180845,4.522,1837.7,1837.5,5.6762185]
[1746330180994,9.96281572,1838.0,1837.6,6.77738009]
[1746330181194,9.96281572,1838.0,1837.7,0.23250508]
[1746330181426,9.96281572,1838.0,1837.6,0.7681]
[1746330181734,5.44114672,1837.9,1837.8,0.2320767]
[1746330181921,5.44114672,1837.9,1837.7,0.23250508]
[1746330182104,5.44114672,1837.9,1837.8,0.2320767]
[1746330182302,5.44114672,1837.9,1837.6,0.7681]
[1746330182503,5.44114672,1837.9,1837.8,0.2320767]
[1746330182704,5.44128849,1837.8,1837.7,0.23250508]
[1746330182937,5.44215136,1837.6,1837.3,3.0]
[1746330183226,5.44215136,1837.6,1837.2,0.7681]
[1746330183227,5.44212389,1837.6,1837.2,0.7681]
[1746330184426,5.44212389,1837.6,1837.2,6.21114103]
[1746330185936,10.88427759,1837.6,1837.2,0.7681]
[1746330186131,5.44206662,1837.6,1837.2,0.7681]
[1746330186505,5.44206662,1837.6,1837.2,6.21103666]
[1746330186724,5.44177774,1837.7,1837.2,6.21103666]
[1746330186920,5.44177774,1837.7,1837.3,5.44275973]
[1746330187113,5.44177774,1837.7,1837.4,0.7681]
[1746330187313,5.44145994,1837.8,1837.4,1.00126456]
[1746330187532,5.44117096,1837.9,1837.4,11.88586877]
[1746330187831,5.44117096,1837.9,1837.4,6.44350278]
[1746330187997,5.44117096,1837.9,1837.5,5.44215666]
[1746330188214,5.44117096,1837.9,1837.6,0.23260211]
[1746330188415,5.44117096,1837.9,1837.7,0.7557]
[1746330188621,5.44092218,1838.0,1837.7,0.98787369]
[1746330188838,9.96192218,1838.0,1837.7,0.98787369]
[1746330189409,5.44109981,1837.9,1837.7,0.98787369]
[1746330189814,9.96186829,1838.0,1837.7,0.98787369]
[1746330191213,5.44106805,1837.9,1837.7,0.98787369]
[1746330191712,5.44092179,1838.0,1837.7,0.98787369]
[1746330193552,5.44099363,1837.9,1837.7,0.98787369]
[1746330193715,5.44084053,1838.0,1837.7,0.98787369]
[1746330193915,5.44110154,1837.9,1837.7,0.98787369]
[1746330194736,5.44088689,1838.0,1837.7,0.98787369]
[1746330195623,29.59563391,1838.1,1837.7,6.42944902]
[1746330195829,25.07563391,1838.1,1837.7,7.07783528]
[1746330196140,29.59563391,1838.1,1837.7,7.07783528]
[1746330196648,29.59563391,1838.1,1837.7,9.3672551]
[1746330197450,29.59563391,1838.1,1837.7,9.3670418]
[1746330197950,24.155,1838.1,1837.8,0.93670418]
[1746330198123,19.635,1838.1,1837.9,0.8025]
[1746330198319,19.635,1838.1,1837.9,1.03219682]
[1746330198518,9.96028832,1838.2,1837.9,1.03219682]
[1746330198721,5.44041889,1838.1,1837.9,1.03219682]
[1746330199228,9.960286,1838.2,1837.9,1.03219682]
[1746330206156,5.44042853,1838.1,1837.9,1.03219682]
[1746330208051,5.4406964,1838.0,1837.9,1.03219682]
[1746330208267,9.96031451,1838.2,1837.9,1.03219682]
[1746330208553,5.44051841,1838.1,1837.9,1.03219682]
[1746330213667,9.96029335,1838.2,1837.9,1.03219682]
[1746330213961,5.43994781,1838.3,1837.9,6.473007]
[1746330214154,5.43994781,1838.3,1838.0,0.6473007]
[1746330214466,5.43994781,1838.3,1838.1,0.22762547]
[1746330216674,5.44010445,1838.2,1838.1,0.22762547]
[1746330217035,5.44010445,1838.2,1837.9,0.8025]
[1746330217367,5.44010445,1838.2,1838.0,0.22805371]
[1746330221137,5.43997006,1838.3,1838.0,0.22805371]
[1746330221974,9.95870696,1838.4,1838.0,0.22805371]
[1746330222194,9.95870696,1838.4,1838.0,5.66873909]
[1746330222478,5.4398091,1838.3,1838.0,5.66873909]
[1746330222636,5.43968919,1838.4,1838.1,0.7649]
[1746330222835,5.43968919,1838.4,1838.2,0.22653472]
[1746330223035,5.43939726,1838.5,1838.2,0.22653472]
[1746330225849,5.43939726,1838.5,1838.3,0.7649]
[1746330226178,5.43939726,1838.5,1838.4,0.22567848]
[1746330227679,5.43981122,1838.3,1838.1,0.7649]
[1746330227879,5.43981122,1838.3,1838.2,0.22568832]
[1746330235578,5.43970721,1838.4,1838.2,0.22568832]
[1746330236479,10.87950622,1838.4,1838.2,0.22568832]
[1746330237191,5.43970721,1838.4,1838.2,0.22568832]
[1746330238297,5.43980851,1838.3,1838.2,0.22568832]
[1746330243175,5.43938256,1838.5,1838.2,0.22568832]
[1746330243973,10.87884198,1838.5,1838.2,0.22568832]
[1746330244436,5.43957882,1838.4,1838.2,0.22568832]
[1746330249816,5.43935285,1838.5,1838.2,0.22568832]
[1746330249817,5.43933403,1838.5,1838.2,0.22568832]
[1746330250481,5.4395369,1838.4,1838.2,0.22568832]
[1746330250916,5.43936598,1838.5,1838.2,0.22568832]
[1746330251485,5.43936598,1838.5,1838.2,0.86877635]
[1746330251687,5.43889104,1838.7,1838.3,6.26872502]
[1746330252009,5.43888177,1838.7,1838.4,0.22369133]
[1746330252311,5.43893184,1838.6,1838.4,0.22369133]
[1746330252482,5.43921675,1838.5,1838.4,0.22369133]
[1746330252683,6.24501675,1838.5,1838.4,0.22369133]
[1746330252878,5.43956016,1838.4,1838.1,0.8291]
[1746330253084,5.43982046,1838.3,1838.1,0.8291]
[1746330253507,5.43969742,1838.4,1838.1,0.8291]
[1746330255116,5.4399763,1838.3,1838.1,0.8291]
[1746330256119,5.43968495,1838.4,1838.1,0.8291]
[1746330256482,5.43983775,1838.3,1838.1,0.8291]
[1746330256925,5.43968352,1838.4,1838.1,0.8291]
[1746330257322,10.87944588,1838.4,1838.1,0.8291]
[1746330257521,5.43981616,1838.3,1838.1,0.8291]
[1746330257688,5.43981616,1838.3,1838.0,3.0]
[1746330257883,5.43981616,1838.3,1838.0,4.21867478]
[1746330258719,5.43970315,1838.4,1838.0,9.65936911]
[1746330259210,5.43932114,1838.5,1838.1,6.27259094]
[1746330259718,5.43932114,1838.5,1838.1,6.32698886]
[1746330260090,5.43932114,1838.5,1838.1,8.61640868]
[1746330260291,5.43932114,1838.5,1838.2,0.86164087]
[1746330261193,5.4390192,1838.6,1838.3,0.8322]
[1746330261434,5.43921828,1838.5,1838.3,0.8322]
[1746330261947,5.43905141,1838.6,1838.3,0.8322]
[1746330262103,5.43905141,1838.6,1838.4,0.22376491]
[1746330262926,5.43921675,1838.5,1838.4,0.22376491]
[1746330264344,5.43909106,1838.6,1838.4,0.22376491]
[1746330265538,10.87828074,1838.6,1838.4,0.22376491]
[1746330265743,5.43909106,1838.6,1838.4,0.22376491]
[1746330265941,6.24312016,1838.8,1838.4,0.22376491]
[1746330266143,9.95524745,1838.9,1838.5,6.19897904]
[1746330266324,15.39357125,1838.9,1838.6,0.84169454]
[1746330266517,5.43837842,1838.8,1838.6,0.22179664]
[1746330266754,5.43862511,1838.7,1838.6,0.22179664]
[1746330267946,5.43862511,1838.7,1838.6,0.2213552]
[1746330268245,5.43862511,1838.7,1838.3,8.903567]
[1746330268446,5.43862511,1838.7,1838.6,0.2213552]
[1746330268623,5.43862511,1838.7,1838.3,8.903567]
[1746330268824,5.43862511,1838.7,1838.4,1.11256795]
[1746330269752,5.43892244,1838.6,1838.4,1.11256795]
[1746330270056,5.43892244,1838.6,1838.4,0.22221125]
[1746330273055,5.43910492,1838.6,1838.4,0.22221125]
[1746330280269,5.43921675,1838.5,1838.4,0.22221125]
[1746330280759,5.43910492,1838.6,1838.4,0.22221125]
[1746330284166,0.8272,1838.7,1838.4,0.22221125]
[1746330284462,5.43915842,1838.6,1838.4,0.22221125]
[1746330292080,5.43912694,1838.6,1838.4,0.22221125]
[1746330292383,5.43921675,1838.5,1838.4,0.22221125]
[1746330292586,5.43910953,1838.6,1838.4,0.22221125]
[1746330300483,5.43921675,1838.5,1838.4,0.22221125]
[1746330300823,5.43910953,1838.6,1838.4,0.22221125]
[1746330301224,5.43921675,1838.5,1838.4,0.22221125]
[1746330301383,5.43921675,1838.5,1838.2,3.0]
[1746330301582,5.43910953,1838.6,1838.3,0.22234503]
[1746330302222,5.43923899,1838.5,1838.3,0.22234503]
[1746330302505,5.43951261,1838.4,1838.3,0.22234503]
[1746330302706,5.44000411,1838.3,1838.0,5.62469222]
[1746330305033,5.44011207,1838.2,1838.0,5.62469222]
[1746330305236,5.43998686,1838.3,1838.0,6.26762144]
[1746330307222,5.43998686,1838.3,1838.1,0.22367118]
[1746330311325,5.44010445,1838.2,1838.1,0.22367118]
[1746330311530,5.43999799,1838.3,1838.1,0.22367118]
[1746330316898,5.44010445,1838.2,1838.1,0.22367118]
[1746330317103,5.44010445,1838.2,1837.9,5.7606264]
[1746330317426,5.44010445,1838.2,1838.0,0.22468798]
[1746330320230,6.19099799,1838.3,1838.0,0.22468798]
[1746330320231,0.751,1838.3,1838.0,0.22468798]
[1746330321201,5.44010445,1838.2,1838.0,0.22468798]
[1746330321495,5.44040041,1838.1,1838.0,0.22468798]
[1746330321830,0.751,1838.3,1838.0,0.22468798]
[1746330322425,4.514,1838.5,1838.2,1.9560264]
[1746330322629,5.22038355,1838.7,1838.3,0.22388173]
[1746330322805,3.65750102,1838.8,1838.6,1.9560264]
[1746330323237,3.65750102,1838.8,1838.7,1.9560264]
[1746330323424,3.65750102,1838.8,1838.7,0.22165451]
[1746330323629,3.65750102,1838.8,1838.6,7.39491829]
[1746330323926,3.65750102,1838.8,1838.7,0.22165451]
[1746330324629,3.65750102,1838.8,1838.5,2.7597264]
[1746330324630,9.09601175,1838.8,1838.5,2.7597264]
[1746330324801,9.09601175,1838.8,1838.6,0.22208247]
[1746330325004,14.53461089,1838.8,1838.6,0.22208247]
[1746330325342,5.43862511,1838.7,1838.6,0.22208247]
[1746330325562,6.20132511,1838.7,1838.6,0.22208247]
[1746330325828,5.44085456,1838.0,1837.7,1.21710834]
[1746330326033,5.44058558,1838.1,1837.8,0.2054193]
[1746330326216,6.20292966,1838.2,1837.8,5.48770099]
[1746330326415,11.64332279,1838.2,1837.8,5.48770099]
[1746330326747,5.44040155,1838.1,1837.8,5.48770099]
[1746330328018,5.44028035,1838.2,1837.8,6.660977]
[1746330328200,5.44028035,1838.2,1837.9,0.7686]
[1746330328201,5.44010452,1838.2,1837.9,0.7686]
[1746330328402,5.44010452,1838.2,1838.0,0.20456269]
[1746330329632,5.44040041,1838.1,1838.0,0.20456269]
[1746330330000,5.44025081,1838.2,1838.0,0.20456269]
[1746330330527,9.95394618,1838.3,1838.0,0.20456269]
[1746330330528,9.9539711,1838.3,1838.0,0.20456269]
[1746330331426,10.87877894,1838.5,1838.0,8.56878268]
[1746330331596,5.43930538,1838.5,1838.0,8.56878268]
[1746330331801,5.4395255,1838.4,1838.0,8.56878268]
[1746330332420,5.4395255,1838.4,1838.0,3.12824899]
[1746330332835,5.43983454,1838.3,1838.0,3.12824899]
[1746330336626,5.43983454,1838.3,1838.0,3.18264837]
[1746330336833,5.43970253,1838.4,1838.0,3.18264837]
[1746330337954,5.43970253,1838.4,1838.0,3.12824899]
[1746330338340,5.43970253,1838.4,1838.0,3.18264838]
[1746330338546,5.43970253,1838.4,1838.0,3.12824899]
[1746330339769,5.43970253,1838.4,1838.0,3.18264838]
[1746330340756,5.43932644,1838.5,1838.2,0.7858]
[1746330341159,5.43932644,1838.5,1838.3,0.20357254]
[1746330343187,5.43908824,1838.6,1838.3,0.20357254]
[1746330343537,5.43852824,1838.8,1838.3,5.69774713]
[1746330343868,5.43852824,1838.8,1838.4,8.5216695]
[1746330344074,5.43852824,1838.8,1838.5,1.05488334]